fUSD/lending_fUSD_20240613
["ID","MTS","AMOUNT","RATE_DAILY","PERIOD"]
[329329216,1718249438395,-150.0,0.00029934,2]
[329329218,1718249438432,-154.31227429,0.00029938,2]
[329329219,1718249438468,-150.85,0.00029988,2]
[329329220,1718249438481,-150.85,0.00029988,2]
[329329221,1718249438514,-150.85,0.00029988,2]
[329329222,1718249438525,-150.85,0.00029988,2]
[329329223,1718249438539,-150.85,0.0002999,2]
[329329225,1718249438551,-150.85,0.0002999,2]
[329329226,1718249438563,-150.85,0.0002999,2]
[329329227,1718249438575,-150.85,0.0002999,2]
[329329228,1718249438593,-150.85,0.0002999,2]
[329329229,1718249438604,-150.85,0.0002999,2]
[329329230,1718249438616,-150.85,0.0002999,2]
[329329231,1718249438628,-150.85,0.0002999,2]
[329329232,1718249438638,-150.85,0.0002999,2]
[329329233,1718249438650,-150.85,0.0002999,2]
[329329234,1718249438664,-150.85,0.0002999,2]
[329329235,1718249438674,-150.85,0.0002999,2]
[329329236,1718249438685,-150.85,0.0002999,2]
[329329237,1718249438695,-150.85,0.0002999,2]
[329329238,1718249438705,-150.85,0.0002999,2]
[329329239,1718249438716,-150.85,0.0002999,2]
[329329240,1718249438727,-150.85,0.0002999,2]
[329329241,1718249438739,-150.85,0.0002999,2]
[329329242,1718249438750,-150.85,0.0002999,2]
[329329243,1718249438761,-150.85,0.0002999,2]
[329329244,1718249438772,-150.85,0.0002999,2]
[329329245,1718249438814,-150.85,0.0002999,2]
[329329246,1718249438828,-150.85,0.0002999,2]
[329329247,1718249438842,-150.85,0.0002999,2]
[329329248,1718249438854,-150.85,0.0002999,2]
[329329249,1718249438865,-150.85,0.0002999,2]
[329329250,1718249438878,-150.85,0.0002999,2]
[329329251,1718249438893,-150.85,0.0002999,2]
[329329252,1718249438905,-150.85,0.0002999,2]
[329329253,1718249438931,-150.85,0.0002999,2]
[329329254,1718249438946,-150.85,0.0002999,2]
[329329255,1718249438960,-150.85,0.0002999,2]
[329329256,1718249438972,-150.85,0.0002999,2]
[329329257,1718249438988,-150.85,0.0002999,2]
[329329258,1718249438998,-150.85,0.0002999,2]
[329329259,1718249439014,-150.85,0.0002999,2]
[329329260,1718249439032,-150.85,0.0002999,2]
[329329261,1718249439043,-150.85,0.0002999,2]
[329329262,1718249439054,-243.16813143,0.00029998,2]
[329329263,1718249439073,-3611.11246474,0.00029998,2]
[329329264,1718249439280,-277.49175357,0.00029998,2]
[329329265,1718249439292,-1116.09317106,0.00029998,2]
[329329266,1718249439326,-166.21639357,0.00029998,2]
[329329267,1718249439361,-411.60800639,0.00029998,2]
[329329268,1718249439381,-526.11662787,0.00029998,2]
[329329269,1718249439399,-159.31649474,0.00029998,2]
[329329270,1718249439422,-626.08983894,0.00029998,2]
[329329271,1718249439453,-297.30472862,0.00029998,2]
[329329272,1718249439483,-2695.04311048,0.00029998,10]
[329329273,1718249439520,-134.3046092,0.00029998,10]
[329329274,1718249439552,-894.3195472,0.00029998,2]
[329329275,1718249439617,-1052.56590418,0.00029998,2]
[329329276,1718249439633,-4660.25284406,0.00029998,2]
[329329277,1718249439692,-6241.64384186,0.00029998,5]
[329329278,1718249439708,-338.87139,0.00029998,5]
[329329279,1718249439794,-2400.0,0.00029998,5]
[329329280,1718249439821,-386.63737113,0.00029998,5]
[329329281,1718249439867,-331.5,0.00029998,5]
[329329282,1718249440002,-1852.97114235,0.00029998,5]
[329329283,1718249440016,-2603.71306986,0.00029998,5]
[329329284,1718249440038,-943.26744094,0.00029998,5]
[329329287,1718249440786,-727.3743122,0.0001692,2]
[329329288,1718249440912,-272.6256878,0.0001692,2]
[329329289,1718249440961,-5.76299483,0.000251,2]
[329329290,1718249441193,-677.03636,0.000251,2]
[329329291,1718249441210,-595.12798665,0.000251,2]
[329329292,1718249441223,-150.0,0.00027278,2]
[329329293,1718249441233,-150.0,0.00027299,2]
[329329294,1718249441244,-150.0,0.0002732,2]
[329329295,1718249441256,-166.97,0.000274,2]
[329329296,1718249441269,-150.0,0.00027558,2]
[329329297,1718249441336,-150.0,0.00027578,2]
[329329298,1718249441375,-150.0,0.0002764,2]
[329329299,1718249441393,-150.0,0.00027744,2]
[329329300,1718249441416,-150.0,0.00027818,2]
[329329301,1718249441428,-150.0,0.00027923,2]
[329329302,1718249441453,-150.0,0.00028081,2]
[329329303,1718249441467,-150.0,0.00028107,2]
[329329304,1718249441478,-150.0,0.00028259,2]
[329329305,1718249441502,-150.0,0.00028265,2]
[329329306,1718249441514,-150.0,0.00028437,2]
[329329307,1718249441534,-150.0,0.00028592,2]
[329329308,1718249441551,-150.0,0.0002868,2]
[329329309,1718249441565,-150.0,0.00028699,2]
[329329310,1718249441589,-150.0,0.00028881,2]
[329329311,1718249441608,-150.0,0.00029017,2]
[329329312,1718249441619,-150.0,0.00029085,2]
[329329313,1718249441637,-291.0,0.000291,2]
[329329314,1718249441648,-150.0,0.00029105,2]
[329329315,1718249441663,-150.0,0.00029396,2]
[329329316,1718249441676,-291.0,0.000294,2]
[329329317,1718249441691,-150.0,0.00029492,2]
[329329318,1718249441711,-150.0,0.0002961,2]
[329329319,1718249441874,-291.0,0.000297,2]
[329329320,1718249441904,-150.0,0.00029737,2]
[329329321,1718249441916,-150.0,0.00029763,2]
[329329322,1718249441961,-150.0,0.00029851,2]
[329329323,1718249441991,-822.54495512,0.000299,2]
[329329324,1718249442028,-150.0,0.00029973,2]
[329329325,1718249442043,-2067.86079862,0.00029998,5]
[329329389,1718249444680,-200.37758532,0.00028656,2]
[329329390,1718249444692,-1703.64735361,0.00029998,5]
[329329447,1718249447769,-180.67204292,0.0002725,2]
[329329448,1718249447782,-199.36,0.00029993,2]
[329329449,1718249447800,-1309.15545708,0.00029998,5]
[329329450,1718249448753,-824.9585,0.00027048,2]
[329329451,1718249448778,-50.3415,0.00027048,2]
[329329452,1718249448796,-161.3531,0.00027048,2]
[329329453,1718249448816,-1204.94218696,0.0002725,2]
[329329454,1718249448838,-320.17971304,0.00027638,2]
[329329464,1718249449639,-295.82028696,0.00027638,2]
[329329468,1718249449654,-39.5759336,0.00029988,3]
[329329470,1718249449668,-168.4340664,0.00029988,3]
[329329472,1718249449692,-174.27395112,0.00029998,5]
[329329475,1718249449706,-534.67786524,0.00029998,5]
[329329477,1718249449721,-2644.17619719,0.00029998,5]
[329329482,1718249449772,-10.15252021,0.00029998,5]
[329329484,1718249449787,-705.5149949,0.00029998,14]
[329329486,1718249449810,-597.24,0.00029998,14]
[329329495,1718249449919,-1623.92663093,0.00029998,14]
[329329496,1718249449944,-156.53275905,0.00029998,2]
[329329498,1718249449955,-188.18395869,0.00029998,2]
[329329500,1718249449969,-192.12214025,0.00029998,2]
[329329503,1718249449994,-3608.33147843,0.00029998,2]
[329329505,1718249450018,-53886.47936156,0.00029998,2]
[329329512,1718249450130,-2745.31762229,0.00029998,2]
[329329514,1718249450148,-1009.75385339,0.00029998,2]
[329329517,1718249450179,-509.16789362,0.00029998,2]
[329329520,1718249450211,-8569.60155393,0.00029998,2]
[329329528,1718249450318,-3223.7629553,0.00029998,2]
[329329549,1718249450649,-262.74895234,0.0002725,2]
[329329550,1718249450661,-310.97004765,0.00029998,2]
[329329552,1718249450675,-841.30346,0.00029998,2]
[329329554,1718249450690,-13563.02965636,0.00029998,2]
[329330325,1718249624286,40001.0,0.00014,2]
[329330326,1718249624502,4501684.07918043,0.00014,2]
[329330327,1718249630332,164.21,0.00024653,30]
[329330329,1718249935601,1000.0,0.00028,120]
[329330330,1718249943240,1000.0,0.00028,120]
[329330331,1718249950490,1000.0,0.00028,120]
[329330332,1718249957213,1000.0,0.00028,120]
[329330333,1718249963050,1000.0,0.00028,120]
[329330334,1718249968696,1000.0,0.00028,120]
[329330335,1718249976720,1092.481718,0.00028,120]
[329330338,1718250276524,150.52,0.00024329,30]
[329330340,1718250588485,172.18,0.00011125,2]
[329330341,1718250589474,603.27,0.00011863,2]
[329330374,1718250636351,39225.55,0.00011863,2]
[329330375,1718250636387,5000.0,0.00011863,2]
[329330376,1718250636418,5000.0,0.00011863,2]
[329330377,1718250636700,-269.28289436,0.00011863,2]
[329330378,1718250637259,-150.0,0.00011863,2]
[329330379,1718250637301,-603.38328281,0.00011863,2]
[329330380,1718250637317,-874.10973,0.00011863,2]
[329330381,1718250637407,-289.3455407,0.00011863,2]
[329330382,1718250637451,-6349.31168983,0.00011863,2]
[329330383,1718250637587,-5314.0001,0.00011863,2]
[329330384,1718250637600,-92730.0863219,0.00011863,2]
[329330385,1718250637617,-280.85203042,0.00011863,2]
[329330387,1718250637632,-1185.07649312,0.00011863,2]
[329330388,1718250637678,-5761.97270198,0.00011863,2]
[329330390,1718250637742,-783.08374567,0.00011863,2]
[329330392,1718250637759,-35278.72312707,0.00011863,2]
[329330394,1718250637842,-150.0,0.00011863,2]
[329330395,1718250637875,-337.58160484,0.00011863,2]
[329330397,1718250637893,-817.26918962,0.00011863,2]
[329330398,1718250637933,-2333.50701761,0.00011863,2]
[329330399,1718250637964,-2207.40403079,0.00011863,2]
[329330400,1718250637985,-1325.14524,0.00011863,2]
[329330401,1718250638011,-378.73,0.00011863,2]
[329330402,1718250638038,-278.60878409,0.00011863,2]
[329330403,1718250638065,-1115.8023317,0.00011863,2]
[329330406,1718250638108,-1671.78414193,0.00011863,2]
[329330409,1718250638122,-2628.90713172,0.00011863,2]
[329330413,1718250638390,-3499.02376926,0.00011863,2]
[329330414,1718250638410,-332268.32571652,0.00011863,2]
[329330415,1718250638421,-155.0,0.00013489,2]
[329330416,1718250638432,-798.0,0.00013489,2]
[329330417,1718250638444,-536.64594277,0.0001349,2]
[329330418,1718250638457,-296.95413331,0.0001349,2]
[329330419,1718250638468,-155.0,0.0001349,2]
[329330420,1718250638479,-667.21533428,0.0001349,2]
[329330421,1718250638494,-364.29742145,0.0001349,2]
[329330422,1718250638508,-209.63999371,0.00013491,2]
[329330423,1718250638519,-429.97845481,0.00013492,2]
[329330424,1718250638531,-155.0,0.00013493,2]
[329330425,1718250638543,-600.0,0.000135,4]
[329330426,1718250638559,-1300.0,0.000136,4]
[329330427,1718250638575,-2000.0,0.000137,5]
[329330428,1718250638587,-9360.2515,0.00013799,2]
[329330429,1718250638599,-2700.0,0.000138,5]
[329330430,1718250638615,-197.07,0.000138,2]
[329330431,1718250638630,-150.0,0.00013853,2]
[329330432,1718250638641,-156.57,0.00013853,2]
[329330433,1718250638653,-499.99,0.00013853,2]
[329330434,1718250638669,-224.11,0.00013863,2]
[329330435,1718250638680,-150.0,0.00013863,2]
[329330436,1718250638691,-707.7405,0.00013899,2]
[329330437,1718250638702,-258.0741,0.00013899,2]
[329330438,1718250638717,-3756.1229,0.00013899,2]
[329330439,1718250638728,-2500.0,0.00013899,2]
[329330440,1718250638740,-249.08668782,0.00013899,2]
[329330441,1718250638755,-326.35336822,0.00013899,2]
[329330442,1718250638789,-221.6582,0.000139,2]
[329330443,1718250638805,-164.44920537,0.000139,2]
[329330444,1718250638823,-264.88898994,0.000139,2]
[329330445,1718250638837,-3400.0,0.000139,5]
[329330446,1718250638849,-841.13,0.00013906,2]
[329330447,1718250638862,-551.18,0.00013989,3]
[329330448,1718250638876,-152.33,0.0001399,2]
[329330449,1718250638887,-416.89127261,0.00013998,2]
[329330450,1718250638898,-213.15790435,0.00013998,2]
[329330451,1718250638910,-8881.41,0.00013998,2]
[329330452,1718250638921,-525.50104401,0.00013998,2]
[329330453,1718250638931,-346.78231274,0.00013998,2]
[329330454,1718250638943,-172.35506497,0.00013998,2]
[329330455,1718250638956,-167.3482756,0.00013998,2]
[329330456,1718250638968,-27495.01257078,0.00013998,2]
[329330457,1718250638982,-157.03118807,0.00013998,2]
[329330458,1718250638993,-155.31177174,0.00013998,2]
[329330459,1718250639005,-155.0,0.00013998,2]
[329330460,1718250639018,-215.91375665,0.00013998,2]
[329330461,1718250639030,-155.35331114,0.00013998,2]
[329330462,1718250639042,-795.39204526,0.00013998,2]
[329330463,1718250639065,-446.80079403,0.00013998,2]
[329330464,1718250639077,-283.8003683,0.00013998,2]
[329330465,1718250639109,-155.0,0.00013998,2]
[329330466,1718250639133,-180.38938158,0.00013998,2]
[329330467,1718250639164,-1927.38018579,0.00013998,2]
[329330468,1718250639182,-1246.38219162,0.00013998,2]
[329330469,1718250639196,-241.70358386,0.00013998,2]
[329330470,1718250639219,-9917.27745119,0.00013998,2]
[329330471,1718250639250,-2138.57685314,0.00013998,2]
[329330472,1718250639272,-833.475728,0.00013998,2]
[329330473,1718250639292,-3074.97926525,0.00013998,2]
[329330474,1718250639317,-155.0,0.00013998,2]
[329330475,1718250639338,-156.80875828,0.00013998,2]
[329330476,1718250639352,-162.52861424,0.00013998,2]
[329330477,1718250639373,-155.0,0.00013998,2]
[329330478,1718250639386,-307.57624095,0.00013998,2]
[329330479,1718250639408,-155.26192045,0.00013998,2]
[329330480,1718250639422,-180.02417932,0.00013998,2]
[329330481,1718250639446,-691735.16373752,0.00013999,2]
[329330482,1718250639474,-150.99,0.00013999,2]
[329330483,1718250639498,-2856981.5704973,0.00014,2]
[329330484,1718250639585,-528.84460621,0.00013488,2]
[329330486,1718250639600,-26543.28342913,0.00014,2]
[329330491,1718250639684,-4207.32988912,0.00014,2]
[329330494,1718250639705,-3659.19194591,0.00014,2]
[329330496,1718250639737,-978.1367281,0.00014,2]
[329330499,1718250639759,-569.28289436,0.00014,2]
[329330523,1718250640116,-6725.0,0.00014,2]
[329330572,1718250640931,-165834.70939861,0.00014,2]
[329330574,1718250640946,-979.10459542,0.00014,2]
[329330576,1718250640966,-549.80271798,0.00014,2]
[329330578,1718250640980,-2211.38560585,0.00014,2]
[329330580,1718250640996,-338.79383807,0.00014,2]
[329330582,1718250641015,-461.81999999,0.00014,2]
[329330593,1718250641202,-1088.3299892,0.00014,2]
[329330600,1718250641310,-953.95221636,0.00014,2]
[329330602,1718250641324,-441.32107792,0.00014,2]
[329330604,1718250641337,-11328.26866453,0.00014,2]
[329330606,1718250641351,-9417.0797708,0.00014,2]
[329330608,1718250641364,-165081.37562008,0.00014,2]
[329330609,1718250641378,-20115.65004122,0.00014,2]
[329330630,1718250641846,-206189.35064676,0.00014,2]
[329330632,1718250641864,-232855.36950562,0.00014,2]
[329330645,1718250642082,-153250.16355072,0.00014,2]
[329330646,1718250642094,-603.27,0.00014127,2]
[329330649,1718250642109,-172.09388851,0.00014282,2]
[329330651,1718250642129,-150.0,0.00014382,2]
[329330653,1718250642147,-360.21,0.00014907,2]
[329330655,1718250642159,-200.0,0.00014953,2]
[329330657,1718250642172,-300087.52688374,0.00015,2]
[329330659,1718250642187,-4220.45580288,0.00015,2]
[329330661,1718250642198,-321.88,0.00015019,2]
[329330662,1718250642209,-228.67337113,0.00015157,2]
[329330664,1718250642222,-18520.81,0.00015737,2]
[329330666,1718250642244,-1834.1,0.00015869,2]
[329330668,1718250642270,-2029.4,0.00016004,2]
[329330670,1718250642299,-250.0,0.00016004,2]
[329330672,1718250642327,-346.1,0.00016134,2]
[329330674,1718250642352,-249.08668775,0.00016185,2]
[329330676,1718250642377,-603.27,0.00016391,2]
[329330678,1718250642397,-176.49,0.00016643,2]
[329330680,1718250642409,-346.1,0.0001694,2]
[329330682,1718250642421,-163.23,0.00017037,2]
[329330684,1718250642433,-163.23,0.00017148,2]
[329330686,1718250642446,-525.68722811,0.00017255,2]
[329330688,1718250642464,-1325.12288187,0.00017259,2]
[329330690,1718250642475,-163.23,0.00017259,2]
[329330692,1718250642491,-163.23,0.0001737,2]
[329330694,1718250642504,-163.23,0.00017481,2]
[329330696,1718250642517,-163.23,0.00017592,2]
[329330699,1718250642530,-360.21,0.00017647,2]
[329330701,1718250642549,-163.23,0.00017703,2]
[329330703,1718250642566,-346.1,0.00017747,2]
[329330706,1718250642581,-2049.48,0.00017752,2]
[329330707,1718250642597,-351.86,0.00017771,2]
[329330709,1718250642611,-23900.0,0.00017806,2]
[329330711,1718250642629,-163.23,0.00017814,2]
[329330714,1718250642653,-163.23,0.00017925,2]
[329330716,1718250642677,-200.0,0.00017938,2]
[329330718,1718250642689,-249.08668775,0.00018471,2]
[329330720,1718250642705,-173.97,0.00018538,2]
[329330721,1718250642719,-346.1,0.00018554,2]
[329330724,1718250642735,-603.27,0.00018655,2]
[329330725,1718250642747,-249.95556866,0.00019178,2]
[329330727,1718250642761,-172.36,0.00019272,2]
[329330730,1718250642803,-346.1,0.0001936,2]
[329330732,1718250642815,-852.47531273,0.0002,2]
[329330734,1718250642831,-341.91545063,0.0002,2]
[329330737,1718250642844,-14694.13620807,0.0002,2]
[329330739,1718250642856,-226.76270483,0.000201,2]
[329330741,1718250642867,-226.76270483,0.000201,2]
[329330743,1718250642879,-360.21,0.00020387,2]
[329330745,1718250642891,-249.08668775,0.00020757,2]
[329330747,1718250642913,-603.27,0.00020919,2]
[329330749,1718250642925,-1250.0,0.00021,2]
[329330751,1718250642936,-1181.89,0.00021081,2]
[329330753,1718250642947,-250.0,0.00021276,2]
[329330756,1718250642965,-1932.43,0.00021295,2]
[329330758,1718250642978,-331.59,0.0002139,2]
[329330759,1718250642989,-164.44920536,0.000219,2]
[329330761,1718250643001,-500.0,0.000219,2]
[329330763,1718250643015,-340.52,0.00021918,2]
[329330765,1718250643026,-250.0,0.00021918,2]
[329330767,1718250643038,-150.0,0.00021918,2]
[329330769,1718250643049,-150.0,0.00021918,2]
[329330771,1718250643060,-1300.0,0.00023,2]
[329330773,1718250643073,-249.08668775,0.00023042,2]
[329330776,1718250643105,-603.27,0.00023182,2]
[329330778,1718250643119,-2829.34771968,0.00024,10]
[329330780,1718250643130,-1675.54,0.00024,2]
[329330782,1718250643143,-795.65529754,0.00024109,2]
[329330784,1718250643153,-500.0,0.00024109,2]
[329330786,1718250643169,-431.56832068,0.00024109,2]
[329330787,1718250643180,-6043.18,0.000242,2]
[329330790,1718250643196,-180.0,0.0002423,2]
[329330792,1718250643210,-878.64643978,0.00024329,4]
[329330793,1718250643238,-223.42687283,0.00024329,2]
[329330795,1718250643251,-500.0,0.00024329,2]
[329330797,1718250643264,-161.26,0.00024384,2]
[329330798,1718250643278,-151.06,0.00024384,2]
[329330800,1718250643290,-155.04422621,0.00024474,2]
[329330802,1718250643317,-162.83691157,0.00024578,2]
[329330804,1718250643329,-986.63,0.00024679,2]
[329330806,1718250643344,-2383.2,0.000247,2]
[329330808,1718250643356,-155.73475333,0.00024713,2]
[329330809,1718250643375,-150.0,0.00024798,10]
[329330811,1718250643391,-150.0,0.00024798,10]
[329330813,1718250643412,-948.74089447,0.00024798,2]
[329330814,1718250643434,-948.74089438,0.00024798,2]
[329330817,1718250643455,-948.74089438,0.00024798,2]
[329330819,1718250643487,-948.74089438,0.00024798,2]
[329330821,1718250643502,-948.74089438,0.00024798,2]
[329330822,1718250643515,-948.74089438,0.00024798,2]
[329330825,1718250643550,-948.74089438,0.00024798,2]
[329330826,1718250643562,-2837.61346588,0.00024799,2]
[329330828,1718250643574,-2837.61346585,0.00024799,2]
[329330829,1718250643594,-2837.61346585,0.00024799,2]
[329330831,1718250643614,-2837.61346585,0.00024799,2]
[329330833,1718250643641,-2837.61346585,0.00024799,2]
[329330835,1718250643657,-2837.61346585,0.00024799,2]
[329330837,1718250643674,-2837.61346585,0.00024799,2]
[329330839,1718250643696,-158.09473025,0.00024808,2]
[329330841,1718250643711,-6802.41760684,0.000249,2]
[329330842,1718250643725,-326.25589418,0.00025,2]
[329330844,1718250643738,-1350.0,0.00025,2]
[329330846,1718250643751,-166.68931393,0.00025184,2]
[329330849,1718250643785,-1675.54,0.000253,2]
[329330851,1718250643798,-249.08668775,0.00025328,2]
[329330853,1718250643812,-603.27,0.00025446,2]
[329330855,1718250643829,-154.76807973,0.00025474,2]
[329330856,1718250643842,-158.09473025,0.00025548,2]
[329330858,1718250643863,-155.04706832,0.00026125,2]
[329330860,1718250643884,-6043.18,0.000263,2]
[329330862,1718250643898,-948.74089438,0.00026344,2]
[329330864,1718250643917,-2837.61346585,0.00026344,2]
[329330865,1718250643930,-158.09473025,0.00026384,2]
[329330866,1718250643942,-2227.0,0.000264,2]
[329330868,1718250643962,-688.82321006,0.000264,2]
[329330871,1718250643976,-169.1813528,0.00026431,2]
[329330872,1718250643993,-155.73475333,0.00026638,2]
[329330874,1718250644008,-154.76807973,0.00026655,2]
[329330876,1718250644021,-2383.2,0.000267,2]
[329330878,1718250644037,-150.0,0.00026879,10]
[329330880,1718250644063,-150.0,0.00026879,10]
[329330882,1718250644075,-58010.25215421,0.0002688,2]
[329331195,1718250649626,-150.0,0.00011863,2]
[329331198,1718250651967,-119.28289436,0.00011863,2]
[329331200,1718250651978,-429.97845481,0.00017258,2]
[329331203,1718250651999,-156.45668317,0.00017259,2]
[329331204,1718250652009,-155.37027795,0.00017259,2]
[329331206,1718250652029,-206.47422522,0.00017259,2]
[329331208,1718250652048,-458.24934624,0.00019178,2]
[329331210,1718250652062,-187.6090952,0.0002,2]
[329331211,1718250652074,-155.2,0.00025,2]
[329331213,1718250652085,-250.0,0.00026564,2]
[329331215,1718250652106,-166.23,0.00026609,2]
[329331216,1718250652116,-3692.26702307,0.0002688,2]
[329331219,1718250652137,-927.13450199,0.0002688,2]
[329331220,1718250652191,-358.85760761,0.00017258,2]
[329331221,1718250652203,-314.42239239,0.0002688,2]
[329331222,1718250652220,-921.9923803,0.0002688,2]
[329331225,1718250653186,-3125.40150608,0.0002688,2]
[329331226,1718250653203,-30323.64511899,0.0002688,2]
[329331227,1718250653233,-416.26458369,0.0002688,2]
[329331228,1718250653249,-3370.33702651,0.0002688,2]
[329331229,1718250653294,-1464.4470761,0.0002688,2]
[329331230,1718250653409,-669.06929,0.0002688,2]
[329331231,1718250653425,-6705.49016,0.0002688,2]
[329331239,1718250661844,-150.0,0.00011863,2]
[329331240,1718250663232,-150.0,0.00011862,2]
[329331241,1718250663856,-150.0,0.00011863,2]
[329331242,1718250664453,-150.0,0.00011863,2]
[329331243,1718250664882,-150.0,0.00011863,2]
[329331245,1718250672800,-150.0,0.00011863,2]
[329331246,1718250673325,-150.0,0.00011863,2]
[329331247,1718250673947,-150.0,0.00011863,2]
[329331248,1718250674370,-150.0,0.00011863,2]
[329331249,1718250674770,-150.0,0.00011863,2]
[329331250,1718250675616,-150.0,0.00011863,2]
[329331251,1718250685555,-150.0,0.00011863,2]
[329331252,1718250686115,-150.0,0.00011863,2]
[329331253,1718250686541,-150.0,0.00011863,2]
[329331254,1718250687337,-150.0,0.00011863,2]
[329331255,1718250687870,-150.0,0.00011863,2]
[329331256,1718250688293,3927.84,0.00028,90]
[329331257,1718250688497,-150.0,0.00011863,2]
[329331258,1718250689065,-150.0,0.00011863,2]
[329331259,1718250689697,-150.0,0.00011863,2]
[329331260,1718250690286,-150.0,0.00011863,2]
[329331261,1718250700923,-71632.48696177,0.00011863,2]
[329331262,1718250703450,-150.0,0.00011863,2]
[329331263,1718250703984,-150.0,0.00011863,2]
[329331264,1718250704480,-150.0,0.00011863,2]
[329331265,1718250705107,-150.0,0.00011863,2]
[329331266,1718250714347,-1200.0,0.00011863,2]
[329331267,1718250714389,-1364.1706901,0.00011863,2]
[329331268,1718250720965,168.3692821,0.00013889,2]
[329331269,1718250727760,1356.25066166,0.00011863,2]
[329331270,1718250735330,750.0,0.00011863,2]
[329331271,1718250746359,-100948.29826614,0.00013899,2]
[329331272,1718250779324,-150.0,0.00013899,2]
[329331273,1718250779370,-150.0,0.00013899,2]
[329331274,1718250779679,-150.0,0.00013899,2]
[329331275,1718250779733,-150.0,0.00013899,2]
[329331276,1718250779776,-150.0,0.00013899,2]
[329331277,1718250779841,-150.0,0.00013899,2]
[329331278,1718250779920,-150.0,0.00013899,2]
[329331279,1718250780028,-150.0,0.00013899,2]
[329331280,1718250780225,-150.0,0.00013899,2]
[329331281,1718250780310,-150.0,0.00013899,2]
[329331282,1718250780445,-150.0,0.00013899,2]
[329331283,1718250780515,-150.0,0.00013899,2]
[329331284,1718250780654,-150.0,0.00013899,2]
[329331285,1718250780713,-261.60089801,0.00013899,2]
[329331286,1718250780792,-150.0,0.00013899,2]
[329331287,1718250780878,-150.0,0.00013899,2]
[329331288,1718250781386,300.0,0.00013898,2]
[329331289,1718250784747,1000.0,0.00013898,2]
[329331290,1718250785391,-1327.18973585,0.00013899,2]
[329331291,1718250785438,-1000.0,0.00013899,2]
[329331292,1718250785469,-2500.0,0.00013899,2]
[329331294,1718250897242,150.52,0.00024518,30]
[329331295,1718250913494,2211.60089801,0.00013899,2]
[329331298,1718250939721,-18067.32105844,0.00013899,2]
[329331299,1718250939752,-19786.35336253,0.00013899,2]
[329331300,1718250975447,-300.0,0.00013898,2]
[329331301,1718250975477,-155.16031543,0.00013899,2]
[329331302,1718250975504,-19777.51689303,0.00013899,2]
[329331303,1718250975534,-20278.92195645,0.00013899,2]
[329331304,1718250993128,20278.92195645,0.00013899,2]
[329331305,1718251009271,11800.02221571,0.00013899,2]
[329331308,1718251491942,150.52,0.00024329,30]
[329331312,1718251833932,-1000.0,0.00017021,2]
[329331313,1718251833943,-667.21533428,0.00017022,2]
[329331314,1718251833982,-364.29742145,0.00017022,2]
[329331315,1718251833998,-278.64944939,0.00017032,2]
[329331316,1718251834012,-273.26,0.00017486,2]
[329331317,1718251834037,-162.62,0.0001852,2]
[329331318,1718251834052,-150.0,0.0001945,2]
[329331319,1718251834064,-299.99,0.00019451,7]
[329331320,1718251834075,-329.14303179,0.00019451,2]
[329331321,1718251834161,-496.75696821,0.00019451,2]
[329331322,1718251834173,-499.99,0.00019452,2]
[329331323,1718251834184,-224.99,0.00019499,3]
[329331324,1718251834219,-671.01270449,0.000195,2]
[329331325,1718251834230,-412.08,0.00019728,2]
[329331326,1718251834245,-226.76270483,0.000201,2]
[329331327,1718251834257,-210.0,0.00021395,2]
[329331328,1718251834273,-192.63,0.00021635,2]
[329331329,1718251834292,-2693.54,0.00021675,2]